bitfinex-derivatives/quotes_BNBF0:USTF0_20250523
["timestamp","ask_amount","ask_price","bid_price","bid_amount"]
[1748027603419,0.4714359,667.99,667.08,1.12200514]
[1748027603714,0.4714359,667.98,667.08,1.12200514]
[1748027603914,0.47141559,667.97,667.08,1.12200514]
[1748027604119,0.47141559,667.96,667.08,1.12200514]
[1748027604321,0.47141559,667.95,667.08,1.12200514]
[1748027604519,0.47141559,667.94,667.08,1.12200514]
[1748027604715,0.47141559,667.93,667.08,1.12200514]
[1748027605015,0.47141559,667.92,667.12,1.12200514]
[1748027605219,0.47141559,667.91,667.12,1.12200514]
[1748027605420,0.29940119,668.0,667.12,1.12200514]
[1748027605621,0.47129541,667.99,667.12,1.12200514]
[1748027605820,0.47130439,667.98,667.12,1.12200514]
[1748027606119,0.47130439,667.97,667.12,1.12200514]
[1748027606315,0.47130439,667.96,667.12,1.12200514]
[1748027606618,0.47130439,667.95,667.12,1.12200514]
[1748027606819,0.47130439,667.94,667.12,1.12200514]
[1748027607017,0.29940119,668.0,667.12,1.12200514]
[1748027607018,0.47130439,667.93,667.12,1.12200514]
[1748027607218,0.47130439,667.92,667.12,1.12200514]
[1748027607417,0.47130439,667.91,667.12,1.12200514]
[1748027607620,0.29940119,668.0,667.12,1.12200514]
[1748027607919,0.4712259,667.99,667.12,1.12200514]
[1748027608120,0.4712259,667.98,667.12,1.12200514]
[1748027608321,0.4712259,667.97,667.12,1.12200514]
[1748027608517,0.29940119,668.0,667.12,1.12200514]
[1748027608518,0.4712259,667.96,667.12,1.12200514]
[1748027608719,0.4712259,667.95,666.94,1.49600686]
[1748027608921,0.4712259,667.94,666.94,1.49600686]
[1748027609121,0.4712259,667.93,666.94,1.49600686]
[1748027609318,0.4712259,667.92,666.94,1.49600686]
[1748027609522,0.4712259,667.91,666.94,1.49600686]
[1748027609720,0.29940119,668.0,666.94,1.49600686]
[1748027609920,0.47113592,667.99,666.94,1.49600686]
[1748027610125,0.47113592,667.98,667.12,1.11614057]
[1748027610319,0.47113607,667.97,667.12,1.11614057]
[1748027610519,0.47113607,667.96,667.12,1.11614057]
[1748027610723,0.47113607,667.95,667.12,1.11614057]
[1748027610923,0.47113607,667.94,667.12,1.11614057]
[1748027611121,0.47113607,667.93,667.12,1.11614057]
[1748027611321,0.47113607,667.92,667.12,1.11614057]
[1748027611523,0.47113607,667.91,667.12,1.11614057]
[1748027611721,0.29940119,668.0,667.12,1.11614057]
[1748027611924,0.47123097,667.99,667.12,1.11614057]
[1748027612122,0.47123097,667.98,667.12,1.11614057]
[1748027612325,0.47123097,667.97,667.12,1.11614057]
[1748027612522,0.29940119,668.0,667.11,1.11614057]
[1748027612523,0.47123097,667.96,667.11,1.11614057]
[1748027612726,0.47123097,667.95,667.11,1.11614057]
[1748027612928,0.47123097,667.94,667.11,1.11614057]
[1748027613121,0.47123097,667.93,667.11,1.11614057]
[1748027613322,0.47123097,667.92,667.11,1.11614057]
[1748027613522,0.47123097,667.91,667.11,1.11614057]
[1748027613727,0.29940119,668.0,667.11,1.11614057]
[1748027613927,0.47122819,667.99,667.11,1.11614057]
[1748027614131,0.47122819,667.98,667.11,1.11614057]
[1748027614434,0.47122819,667.97,667.11,1.11614057]
[1748027614633,0.47121365,667.96,667.14,1.11614057]
[1748027614832,0.47121365,667.95,667.14,1.11614057]
[1748027615032,0.47121365,667.94,667.14,1.11614057]
[1748027615232,0.47121365,667.93,667.14,1.11614057]
[1748027615433,0.47121365,667.92,667.14,1.11614057]
[1748027615632,0.47121365,667.91,667.14,1.11614057]
[1748027615830,0.29940119,668.0,667.14,1.11614057]
[1748027619838,1.11494535,667.99,667.14,1.11614057]
[1748027620037,0.29941016,667.98,667.14,1.11614057]
[1748027622234,1.11494535,667.96,667.05,1.11614057]
[1748027622539,0.2994236,667.95,667.05,1.11614057]
[1748027624235,1.11494535,667.9,667.01,1.11614057]
[1748027624738,1.227,667.89,667.01,1.11614057]
[1748027626743,1.227,667.89,666.97,1.11614057]
[1748027628844,1.227,667.89,667.0,1.11614057]
[1748027631446,1.227,667.89,667.03,1.11614057]
[1748027633148,1.227,667.89,667.04,1.11614057]
[1748027636051,1.227,667.89,666.84,1.49600686]
[1748027636244,1.227,667.89,665.17,0.47663001]
[1748027637149,1.227,667.89,665.22,0.47663001]
[1748027640051,1.227,667.89,665.55,0.47663001]
[1748027640251,1.227,667.89,665.66,0.30045368]
[1748027640852,0.2994236,667.95,665.66,0.30045368]
[1748027642551,1.297,667.94,665.66,0.30045368]
[1748027642851,1.297,667.94,665.83,0.47663001]
[1748027643055,1.297,667.94,665.93,0.30033186]
[1748027644957,1.59642809,667.94,665.93,0.30033186]
[1748027646160,0.29943257,667.93,665.93,0.30033186]
[1748027651866,0.29943257,667.93,665.98,0.47663001]
[1748027652066,0.29943257,667.93,666.0,0.3003003]
[1748027662070,1.246,667.92,666.0,0.3003003]
[1748027662275,0.29944602,667.9,666.0,0.3003003]
[1748027681796,0.29944602,667.9,666.13,0.47663001]
[1748027681991,0.29944602,667.9,666.15,0.30023268]
[1748027692311,0.47149244,667.89,666.15,0.30023268]
[1748027692514,0.77094743,667.88,666.15,0.30023268]
[1748027692714,0.77095191,667.87,666.15,0.30023268]
[1748027692914,0.77095639,667.86,666.15,0.30023268]
[1748027693115,0.77096088,667.85,666.15,0.30023268]
[1748027693409,1.246,667.92,666.15,0.30023268]
[1748027693410,0.77096536,667.84,666.15,0.30023268]
[1748027693615,0.47149244,667.83,666.15,0.30023268]
[1748027695510,0.47191556,667.82,666.15,0.30023268]
[1748027695715,0.47191556,667.81,666.15,0.30023268]
[1748027695915,0.47191556,667.8,666.15,0.30023268]
[1748027696215,0.29947292,667.84,666.15,0.30023268]
[1748027697018,0.29947292,667.84,667.29,1.1196351]
[1748027699319,0.29947292,667.84,667.13,1.1196351]
[1748027704621,1.146,667.83,667.13,1.1196351]
[1748027704821,1.146,667.83,667.11,1.1196351]
[1748027706116,0.47205786,667.82,667.11,1.1196351]
[1748027706321,0.47205786,667.81,667.11,1.1196351]
[1748027706521,0.47205786,667.8,667.11,1.1196351]
[1748027706721,0.47205786,667.79,667.11,1.1196351]
[1748027706922,0.47205786,667.78,667.11,1.1196351]
[1748027707123,0.47205786,667.77,667.11,1.1196351]
[1748027707422,0.47205786,667.76,667.17,1.1196351]
[1748027707622,0.47209259,667.75,667.17,1.1196351]
[1748027707821,0.47209259,667.74,667.17,1.1196351]
[1748027708018,1.146,667.83,667.17,1.1196351]
[1748027708224,0.47209303,667.82,667.17,1.1196351]
[1748027708421,0.47209303,667.81,667.17,1.1196351]
[1748027708624,0.47209303,667.8,667.17,1.1196351]
[1748027708821,0.47209303,667.79,667.17,1.1196351]
[1748027709023,0.47209303,667.78,667.17,1.1196351]
[1748027709225,0.47209303,667.77,667.17,1.1196351]
[1748027709424,0.47209303,667.76,667.17,1.1196351]
[1748027709626,0.47209303,667.75,667.17,1.1196351]
[1748027709825,0.47209303,667.74,667.17,1.1196351]
[1748027710024,0.47209303,667.73,667.17,1.1196351]
[1748027710225,0.47209303,667.72,667.17,1.1196351]
[1748027710424,0.47209303,667.71,667.14,1.1196351]
[1748027710623,0.47209303,667.7,667.14,1.1196351]
[1748027710821,1.119145,667.82,667.14,1.1196351]
[1748027711025,0.47207117,667.81,667.14,1.1196351]
[1748027711224,0.47207142,667.8,667.14,1.1196351]
[1748027711426,0.47207142,667.79,667.14,1.1196351]
[1748027711626,0.47207142,667.78,667.14,1.1196351]
[1748027711822,0.47207142,667.77,667.14,1.1196351]
[1748027712027,0.47207142,667.76,667.14,1.1196351]
[1748027712323,0.47207142,667.75,667.14,1.1196351]
[1748027712526,0.47207142,667.74,667.14,1.1196351]
[1748027712729,0.47207142,667.73,667.08,1.1196351]
[1748027712928,0.47207142,667.72,667.08,1.1196351]
[1748027713130,0.47205895,667.71,667.08,1.1196351]
[1748027713425,0.47205895,667.7,666.15,0.30023268]
[1748027713634,0.47205895,667.69,666.15,0.30023268]
[1748027713823,0.47205895,667.68,666.15,0.30023268]
[1748027714024,0.47205895,667.67,666.15,0.30023268]
[1748027714229,0.47205895,667.66,666.15,0.30023268]
[1748027714429,0.47205895,667.65,666.15,0.30023268]
[1748027714624,0.47205895,667.64,666.15,0.30023268]
[1748027714825,0.47197047,667.63,667.06,1.12008085]
[1748027715126,0.47197047,667.62,667.06,1.12008085]
[1748027715327,1.11809166,667.71,667.06,1.12008085]
[1748027715530,0.47197764,667.7,667.06,1.12008085]
[1748027715829,0.47197764,667.69,667.06,1.12008085]
[1748027716028,0.47197764,667.68,667.06,1.12008085]
[1748027716224,0.47197764,667.67,667.06,1.12008085]
[1748027716427,0.47197764,667.66,667.06,1.12008085]
[1748027716625,0.47177757,667.65,667.06,1.12008085]
[1748027716826,0.47177757,667.64,667.06,1.12008085]
[1748027717029,0.47177757,667.63,667.06,1.12008085]
[1748027717230,0.47177757,667.62,667.06,1.12008085]
[1748027717432,0.47177416,667.61,667.04,1.12008085]
[1748027717631,0.47177605,667.6,667.04,1.12008085]
[1748027717832,0.47177605,667.59,667.04,1.12008085]
[1748027718026,0.47177605,667.58,667.04,1.12008085]
[1748027718228,0.47177605,667.57,667.04,1.12008085]
[1748027718430,0.47172092,667.56,667.04,1.12008085]
[1748027718629,1.11809166,667.7,667.04,1.12008085]
[1748027718829,0.4717496,667.69,667.04,1.12008085]
[1748027719030,0.4717496,667.68,667.04,1.12008085]
[1748027719230,0.4717496,667.67,667.04,1.12008085]
[1748027719433,0.4717496,667.66,667.04,1.12008085]
[1748027719627,1.11809166,667.62,667.01,1.12008085]
[1748027719829,0.4717496,667.61,667.01,1.12008085]
[1748027720036,0.4717496,667.6,667.01,1.12008085]
[1748027720333,0.47137235,667.59,667.01,1.12008085]
[1748027720526,0.47137235,667.58,667.01,1.12008085]
[1748027720728,0.47137235,667.57,667.01,1.12008085]
[1748027721029,0.47137235,667.56,667.01,1.12008085]
[1748027721228,1.11809166,667.62,667.01,1.12008085]
[1748027721428,0.47134738,667.61,667.01,1.12008085]
[1748027721631,0.47134738,667.6,667.01,1.12008085]
[1748027721828,0.47134738,667.59,667.01,1.12008085]
[1748027722032,0.47134738,667.58,667.01,1.12008085]
[1748027722329,0.47134738,667.57,667.01,1.12008085]
[1748027722633,1.11809166,667.62,667.01,1.12008085]
[1748027722829,0.47136176,667.61,667.01,1.12008085]
[1748027723028,1.11809166,667.62,667.01,1.12008085]
[1748027725136,1.11809166,667.75,667.09,1.12008085]
[1748027725336,0.47147682,667.74,667.09,1.12008085]
[1748027725530,0.47147682,667.73,667.09,1.12008085]
[1748027725732,0.47147682,667.72,667.09,1.12008085]
[1748027725934,0.47147682,667.71,667.09,1.12008085]
[1748027726133,0.47147682,667.7,667.09,1.12008085]
[1748027726329,0.47147682,667.69,667.09,1.12008085]
[1748027726634,0.47147682,667.68,667.09,1.12008085]
[1748027726834,0.47147682,667.67,667.09,1.12008085]
[1748027727032,0.47147682,667.66,667.09,1.12008085]
[1748027727237,1.11809166,667.75,667.09,1.12008085]
[1748027727430,0.47151077,667.74,667.09,1.12008085]
[1748027727631,0.47151077,667.73,667.09,1.12008085]
[1748027727932,0.47151077,667.72,667.09,1.12008085]
[1748027728132,0.47151077,667.71,667.09,1.12008085]
[1748027728331,1.11809166,667.75,667.09,1.12008085]
[1748027728332,0.47151077,667.7,667.09,1.12008085]
[1748027728539,0.47151077,667.69,667.09,1.12008085]
[1748027728733,0.47151077,667.68,667.09,1.12008085]
[1748027728937,0.47151077,667.67,667.09,1.12008085]
[1748027729137,0.47151077,667.66,667.09,1.12008085]
[1748027729338,1.11809166,667.75,667.09,1.12008085]
[1748027729536,0.47134882,667.74,667.09,1.12008085]
[1748027729739,0.47134882,667.73,667.09,1.12008085]
[1748027729939,0.47134882,667.72,667.09,1.12008085]
[1748027730249,0.47134882,667.71,667.09,1.12008085]
[1748027730437,0.47134882,667.7,667.09,1.12008085]
[1748027730637,0.47134882,667.69,667.09,1.12008085]
[1748027730838,0.47134882,667.68,667.09,1.12008085]
[1748027731040,0.47134882,667.67,667.09,1.12008085]
[1748027731335,0.47134882,667.66,667.09,1.12008085]
[1748027731534,0.47134882,667.65,667.09,1.12008085]
[1748027731739,1.11809166,667.75,667.09,1.12008085]
[1748027731937,0.47149969,667.74,667.09,1.12008085]
[1748027732137,1.11809166,667.75,667.09,1.12008085]
[1748027732138,0.47149969,667.73,667.09,1.12008085]
[1748027732341,0.47149969,667.72,667.09,1.12008085]
[1748027732542,1.146,667.83,666.15,0.30023268]
[1748027732543,0.47149969,667.71,667.11,1.12008085]
[1748027732742,0.47149969,667.7,667.11,1.12008085]
[1748027732942,0.47149969,667.69,667.11,1.12008085]
[1748027733136,0.47149969,667.68,667.11,1.12008085]
[1748027733338,0.47149969,667.67,667.11,1.12008085]
[1748027733544,0.47149969,667.66,667.11,1.12008085]
[1748027733742,0.47149969,667.65,667.11,1.12008085]
[1748027733943,1.11809166,667.73,667.11,1.12008085]
[1748027734144,0.47156032,667.72,667.11,1.12008085]
[1748027734341,0.47156032,667.71,667.11,1.12008085]
[1748027734542,0.47156032,667.7,667.11,1.12008085]
[1748027734742,0.47156032,667.69,667.11,1.12008085]
[1748027734943,0.47156032,667.68,667.11,1.12008085]
[1748027735140,1.11809166,667.66,667.13,1.12008085]
[1748027735340,0.47156032,667.65,667.13,1.12008085]
[1748027737644,1.11809166,667.62,667.02,1.12008085]
[1748027737844,0.47156032,667.61,667.02,1.12008085]
[1748027738048,0.47156032,667.6,667.02,1.12008085]
[1748027738240,0.47156032,667.59,667.02,1.12008085]
[1748027738444,0.47154074,667.58,667.02,1.12008085]
[1748027738644,0.47154074,667.57,667.02,1.12008085]
[1748027738844,0.47154074,667.56,667.02,1.12008085]
[1748027739046,0.47154074,667.55,667.02,1.12008085]
[1748027739245,1.11809166,667.62,667.02,1.12008085]
[1748027739246,0.47154074,667.54,667.02,1.12008085]
[1748027739446,0.47154074,667.53,667.02,1.12008085]
[1748027739647,0.47154074,667.52,667.02,1.12008085]
[1748027739847,1.11809166,667.62,667.02,1.12008085]
[1748027740143,1.11809166,667.6,666.98,1.12008085]
[1748027740448,0.47149713,667.59,666.98,1.12008085]
[1748027742250,0.47156633,667.58,666.98,1.12008085]
[1748027742549,0.29947292,667.84,666.98,1.12008085]
[1748027742550,0.47156633,667.57,666.98,1.12008085]
[1748027742750,0.47156633,667.56,666.98,1.12008085]
[1748027742949,0.47156633,667.55,666.98,1.12008085]
[1748027743149,0.47156633,667.54,666.98,1.12008085]
[1748027743349,0.47156633,667.53,666.98,1.12008085]
[1748027743649,0.47156633,667.52,666.98,1.12008085]
[1748027743849,0.47156633,667.51,666.98,1.12008085]
[1748027744046,0.47156633,667.5,666.98,1.12008085]
[1748027744249,0.47156633,667.49,666.98,1.12008085]
[1748027744443,1.11809166,667.61,666.98,1.12008085]
[1748027744645,0.47156997,667.6,666.98,1.12008085]
[1748027744851,0.47156997,667.59,666.98,1.12008085]
[1748027745051,0.47156997,667.58,666.98,1.12008085]
[1748027745347,0.47156997,667.57,666.98,1.12008085]
[1748027745552,0.47156997,667.56,666.98,1.12008085]
[1748027745751,0.47156997,667.55,666.87,1.12008085]
[1748027745952,0.47156997,667.54,666.87,1.12008085]
[1748027746247,0.47156997,667.53,666.87,1.12008085]
[1748027746448,0.47156997,667.52,666.87,1.12008085]
[1748027746649,0.47156997,667.51,666.87,1.12008085]
[1748027746945,1.11809166,667.61,666.87,1.12008085]
[1748027747148,0.47178593,667.6,666.87,1.12008085]
[1748027747345,0.47178593,667.59,666.87,1.12008085]
[1748027747550,0.47176231,667.58,666.87,1.12008085]
[1748027747749,0.47176231,667.57,666.88,1.12008085]
[1748027747953,0.47176231,667.56,666.88,1.12008085]
[1748027748253,0.47176231,667.55,666.88,1.12008085]
[1748027748453,0.47176231,667.54,666.88,1.12008085]
[1748027748755,0.47176231,667.53,666.88,1.12008085]
[1748027748952,0.47176231,667.52,666.88,1.12008085]
[1748027749153,1.11809166,667.63,666.88,1.12008085]
[1748027749453,0.47165252,667.62,666.88,1.12008085]
[1748027749655,0.47165252,667.61,666.88,1.12008085]
[1748027749853,0.47165252,667.6,666.88,1.12008085]
[1748027750054,0.47165252,667.59,666.88,1.12008085]
[1748027750257,0.47165252,667.58,666.88,1.12008085]
[1748027750451,0.47165252,667.57,666.88,1.12008085]
[1748027750652,0.47165252,667.56,666.88,1.12008085]
[1748027750853,0.47165252,667.55,666.88,1.12008085]
[1748027751049,0.47165252,667.54,666.88,1.12008085]
[1748027751253,0.47165252,667.53,666.88,1.12008085]
[1748027751455,0.47165252,667.52,666.88,1.12008085]
[1748027751657,1.11809166,667.62,666.88,1.12008085]
[1748027751857,0.47160321,667.61,666.88,1.12008085]
[1748027752151,0.47160321,667.6,666.88,1.12008085]
[1748027752356,0.47160321,667.59,666.88,1.12008085]
[1748027752552,0.47160321,667.58,666.88,1.12008085]
[1748027752753,0.47160321,667.57,666.88,1.12008085]
[1748027752958,0.47160321,667.56,666.87,1.12008085]
[1748027753157,0.47160321,667.55,666.87,1.12008085]
[1748027753357,0.47160321,667.54,666.87,1.12008085]
[1748027753554,0.47160321,667.53,666.87,1.12008085]
[1748027753754,0.47160321,667.52,666.87,1.12008085]
[1748027754051,0.47160321,667.51,666.87,1.12008085]
[1748027754254,1.11809166,667.62,666.87,1.12008085]
[1748027754255,0.47160321,667.5,666.87,1.12008085]
[1748027754456,1.11809166,667.62,666.87,1.12008085]
[1748027754656,0.47140628,667.61,666.87,1.12008085]
[1748027754853,0.47140628,667.6,666.87,1.12008085]
[1748027755059,1.11809166,667.58,666.85,1.12008085]
[1748027755254,0.47140628,667.57,666.85,1.12008085]
[1748027755455,0.47140628,667.56,666.85,1.12008085]
[1748027755753,0.47140628,667.55,666.85,1.12008085]
[1748027755954,0.47140628,667.54,666.85,1.12008085]
[1748027756156,0.47140628,667.53,666.85,1.12008085]
[1748027756359,0.47140628,667.52,666.85,1.12008085]
[1748027756552,0.47140628,667.51,666.85,1.12008085]
[1748027756753,0.47140628,667.5,666.85,1.12008085]
[1748027756953,0.47140628,667.49,666.85,1.12008085]
[1748027757155,0.47140628,667.48,666.85,1.12008085]
[1748027757357,0.47140628,667.47,666.85,1.12008085]
[1748027757656,1.11809166,667.58,666.85,1.12008085]
[1748027757657,0.47140628,667.46,666.85,1.12008085]
[1748027757857,0.47140628,667.45,666.77,1.12008085]
[1748027758059,0.47140628,667.44,666.77,1.12008085]
[1748027758255,0.47140628,667.43,666.77,1.12008085]
[1748027758457,0.47140628,667.42,666.77,1.12008085]
[1748027758656,1.11809166,667.51,666.77,1.12008085]
[1748027758955,0.47120668,667.5,666.77,1.12008085]
[1748027759156,0.47120668,667.49,666.77,1.12008085]
[1748027759359,0.47120668,667.48,666.77,1.12008085]
[1748027759558,0.47120668,667.47,666.77,1.12008085]
[1748027759759,0.47120668,667.46,666.74,1.12008085]
[1748027760058,0.47120668,667.45,666.74,1.12008085]
[1748027760258,0.47120668,667.44,666.74,1.12008085]
[1748027760457,0.47120668,667.43,666.74,1.12008085]
[1748027760658,0.47120668,667.42,666.74,1.12008085]
[1748027760855,1.11809166,667.52,666.74,1.12008085]
[1748027761159,0.47116475,667.51,666.74,1.12008085]
[1748027761358,0.47116475,667.5,666.74,1.12008085]
[1748027761654,0.47116475,667.49,666.74,1.12008085]
[1748027761858,0.47116475,667.48,666.74,1.12008085]
[1748027762059,0.47116475,667.47,666.74,1.12008085]
[1748027762354,0.47116475,667.46,666.74,1.12008085]
[1748027762560,0.47116475,667.45,666.74,1.12008085]
[1748027762860,0.47116475,667.44,666.72,1.12008085]
[1748027763060,0.47116475,667.43,666.72,1.12008085]
[1748027763261,0.47089835,667.42,666.72,1.12008085]
[1748027763454,0.47089835,667.41,666.72,1.12008085]
[1748027763757,0.47089835,667.4,666.72,1.12008085]
[1748027763957,0.47089835,667.39,666.72,1.12008085]
[1748027764255,0.47089835,667.38,666.72,1.12008085]
[1748027764457,0.47089835,667.37,666.72,1.12008085]
[1748027764661,0.47089835,667.36,666.72,1.12008085]
[1748027764956,1.11809166,667.5,666.72,1.12008085]
[1748027765162,0.77032946,667.49,666.72,1.12008085]
[1748027765362,0.47069951,667.48,666.72,1.12008085]
[1748027765862,1.11809166,667.43,666.67,1.12008085]
[1748027766060,0.47069951,667.42,666.67,1.12008085]
[1748027766263,0.47069951,667.41,666.67,1.12008085]
[1748027766463,0.47069951,667.4,666.67,1.12008085]
[1748027766767,0.47060442,667.39,666.67,1.12008085]
[1748027767059,0.47060442,667.38,666.67,1.12008085]
[1748027767262,0.47060442,667.37,666.67,1.12008085]
[1748027767463,1.11809166,667.43,666.67,1.12008085]
[1748027767662,0.47056647,667.42,666.67,1.12008085]
[1748027767864,0.47056647,667.41,666.67,1.12008085]
[1748027768064,0.47056647,667.4,666.67,1.12008085]
[1748027768263,0.47056647,667.39,666.67,1.12008085]
[1748027768566,0.47053704,667.38,666.67,1.12008085]
[1748027768766,0.47053704,667.37,666.67,1.12008085]
[1748027768961,1.11809166,667.44,666.67,1.12008085]
[1748027769164,0.47054444,667.43,666.67,1.12008085]
[1748027769361,0.47054444,667.42,666.67,1.12008085]
[1748027769562,0.47054444,667.41,666.67,1.12008085]
[1748027769760,0.47054444,667.4,666.67,1.12008085]
[1748027769966,0.47054444,667.39,666.67,1.12008085]
[1748027770158,0.47054444,667.38,666.67,1.12008085]
[1748027770360,0.47054444,667.37,666.67,1.12008085]
[1748027770666,1.11809166,667.43,666.66,1.12008085]
[1748027770866,0.47055149,667.42,666.66,1.12008085]
[1748027771065,0.47055149,667.41,666.66,1.12008085]
[1748027771267,0.47055149,667.4,666.66,1.12008085]
[1748027771565,0.47055149,667.39,666.66,1.12008085]
[1748027771765,0.47055149,667.38,666.66,1.12008085]
[1748027771965,1.11809166,667.43,666.66,1.12008085]
[1748027772267,0.47051453,667.42,666.66,1.12008085]
[1748027772460,0.47051453,667.41,666.66,1.12008085]
[1748027772659,0.47051453,667.4,666.66,1.12008085]
[1748027772863,0.47051453,667.39,666.66,1.12008085]
[1748027773066,0.47051453,667.38,666.66,1.12008085]
[1748027773360,0.47051453,667.37,666.66,1.12008085]
[1748027773565,0.47051453,667.36,666.59,1.12008085]
[1748027773766,0.47043116,667.35,666.59,1.12008085]
[1748027773959,0.47043116,667.34,666.59,1.12008085]
[1748027774160,0.47042642,667.33,666.59,1.12008085]
[1748027774364,1.11809166,667.4,666.59,1.12008085]
[1748027774561,0.47041053,667.39,666.59,1.12008085]
[1748027774763,0.47041053,667.38,666.59,1.12008085]
[1748027774962,0.47041053,667.37,666.59,1.12008085]
[1748027775166,0.47041053,667.36,666.59,1.12008085]
[1748027775459,0.47041053,667.35,666.59,1.12008085]
[1748027775659,1.11809166,667.41,666.59,1.12008085]
[1748027775866,0.47042603,667.4,666.59,1.12008085]
[1748027776066,0.47042603,667.39,666.59,1.12008085]
[1748027776266,0.47042603,667.38,666.59,1.12008085]
[1748027776469,0.47042603,667.37,666.59,1.12008085]
[1748027776668,0.47042603,667.36,666.59,1.12008085]
[1748027776966,0.47042603,667.35,666.59,1.12008085]
[1748027777166,0.47042603,667.34,666.59,1.12008085]
[1748027777366,1.11809166,667.41,666.59,1.12008085]
[1748027777664,0.47031559,667.4,666.59,1.12008085]
[1748027777868,0.47031559,667.39,666.59,1.12008085]
[1748027778068,0.47031559,667.38,666.59,1.12008085]
[1748027778267,0.47031559,667.37,666.58,1.12008085]
[1748027778467,0.47031559,667.36,666.58,1.12008085]
[1748027778667,0.47031559,667.35,666.58,1.12008085]
[1748027778868,1.11809166,667.41,666.58,1.12008085]
[1748027779069,0.47025931,667.4,666.58,1.12008085]
[1748027779267,0.47025931,667.39,666.58,1.12008085]
[1748027779469,0.47025931,667.38,666.58,1.12008085]
[1748027779664,0.47025931,667.37,666.58,1.12008085]
[1748027779864,0.47025931,667.36,666.58,1.12008085]
[1748027780064,0.47025931,667.35,666.58,1.12008085]
[1748027780267,1.11809166,667.41,666.58,1.12008085]
[1748027780468,0.46995802,667.4,666.58,1.12008085]
[1748027780669,0.46995802,667.39,666.58,1.12008085]
[1748027780870,0.46995802,667.38,666.58,1.12008085]
[1748027781065,0.46995802,667.37,666.58,1.12008085]
[1748027781266,0.46988421,667.36,666.58,1.12008085]
[1748027781469,0.46988421,667.35,666.58,1.12008085]
[1748027781667,1.11809166,667.41,666.58,1.12008085]
[1748027781873,0.46985785,667.4,666.58,1.12008085]
[1748027782069,0.46985785,667.39,666.58,1.12008085]
[1748027782270,0.46985785,667.38,666.58,1.12008085]
[1748027782568,0.46985785,667.37,666.58,1.12008085]
[1748027782773,0.46985785,667.36,666.58,1.12008085]
[1748027782973,0.46985785,667.35,666.58,1.12008085]
[1748027783170,1.11809166,667.41,666.58,1.12008085]
[1748027783371,0.46993213,667.4,666.58,1.12008085]
[1748027783575,0.46993213,667.39,666.58,1.12008085]
[1748027783774,0.46993213,667.38,666.57,1.12008085]
[1748027783971,0.46993213,667.37,666.57,1.12008085]
[1748027784274,0.46993213,667.36,666.57,1.12008085]
[1748027784474,0.46993213,667.35,666.57,1.12008085]
[1748027784675,1.11809166,667.41,666.57,1.12008085]
[1748027784876,0.46991851,667.4,666.57,1.12008085]
[1748027785072,0.46991851,667.39,666.58,1.12008085]
[1748027785276,0.46991851,667.38,666.58,1.12008085]
[1748027785572,0.46991851,667.37,666.58,1.12008085]
[1748027785777,0.46991851,667.36,666.58,1.12008085]
[1748027785976,0.46991851,667.35,666.58,1.12008085]
[1748027786177,1.11809166,667.41,666.58,1.12008085]
[1748027786377,0.46996178,667.4,666.58,1.12008085]
[1748027786577,0.46996178,667.39,666.58,1.12008085]
[1748027786778,0.46994021,667.38,666.58,1.12008085]
[1748027786978,0.46994021,667.37,666.58,1.12008085]
[1748027787274,0.46994021,667.36,666.58,1.12008085]
[1748027787577,0.46994021,667.35,666.58,1.12008085]
[1748027787774,1.11809166,667.41,666.58,1.12008085]
[1748027787978,0.46996552,667.4,666.58,1.12008085]
[1748027788176,0.46996552,667.39,666.57,1.12008085]
[1748027788375,0.46996552,667.38,666.57,1.12008085]
[1748027788577,0.46996552,667.37,666.57,1.12008085]
[1748027788778,0.46996552,667.36,666.57,1.12008085]
[1748027788979,0.46996552,667.35,666.57,1.12008085]
[1748027789180,1.11809166,667.42,666.57,1.12008085]
[1748027789380,0.928,667.34,666.57,1.12008085]
[1748027791477,0.928,667.34,666.56,1.12008085]
[1748027793781,0.928,667.34,666.57,1.12008085]
[1748027794287,0.4703903,667.33,666.57,1.12008085]
[1748027794486,0.928,667.34,666.57,1.12008085]
[1748027794685,0.4703821,667.33,666.57,1.12008085]
[1748027794984,0.928,667.34,666.57,1.12008085]
[1748027795181,0.47038234,667.33,666.57,1.12008085]
[1748027795384,0.47038234,667.32,666.57,1.12008085]
[1748027795580,0.928,667.34,666.57,1.12008085]
[1748027795785,0.47046764,667.33,666.57,1.12008085]
[1748027795985,0.47046764,667.32,666.57,1.12008085]
[1748027796285,0.928,667.34,666.57,1.12008085]
[1748027796482,0.47054855,667.33,666.57,1.12008085]
[1748027796685,0.47054855,667.32,666.57,1.12008085]
[1748027796882,0.928,667.34,666.57,1.12008085]
[1748027797082,0.47055681,667.33,666.57,1.12008085]
[1748027797285,0.47055681,667.32,666.57,1.12008085]
[1748027797482,0.47055681,667.31,666.57,1.12008085]
[1748027797681,0.928,667.34,666.57,1.12008085]
[1748027797883,0.47061079,667.33,666.57,1.12008085]
[1748027798080,0.47061079,667.32,666.57,1.12008085]
[1748027798285,0.47061079,667.31,666.57,1.12008085]
[1748027798480,0.928,667.34,666.57,1.12008085]
[1748027798683,0.47066667,667.33,666.57,1.12008085]
[1748027798884,0.47066667,667.32,666.57,1.12008085]